bitfinex-derivatives/quotes_BTCF0:USTF0_20251229
["timestamp","ask_amount","ask_price","bid_price","bid_amount"]
[1766978509872,0.00016758,89480.0,89460.0,0.22287273]
[1766978510073,0.00016758,89480.0,89460.0,0.25287273]
[1766978510491,0.00016758,89480.0,89470.0,0.0111868]
[1766978511170,0.00016758,89480.0,89466.0,0.0111874]
[1766978511873,0.00016758,89480.0,89468.0,0.0111871]
[1766978513878,0.00016758,89480.0,89471.0,0.0111868]
[1766978515082,0.00016758,89480.0,89467.0,0.0111872]
[1766978515282,0.00016758,89480.0,89463.0,0.0111877]
[1766978515469,0.00016758,89480.0,89465.0,0.0111875]
[1766978515675,0.011185,89486.0,89470.0,0.22287273]
[1766978515873,0.0111852,89484.0,89464.0,0.0111876]
[1766978516074,0.0111852,89484.0,89466.0,0.0111873]
[1766978516783,0.00016758,89484.0,89470.0,0.23405953]
[1766978517384,0.00016758,89484.0,89470.0,0.22287273]
[1766978517385,0.06747278,89484.0,89470.0,0.22287273]
[1766978517982,0.0111856,89481.0,89466.0,0.00016758]
[1766978518373,0.05628758,89484.0,89466.0,0.00016758]
[1766978518374,0.0111859,89479.0,89466.0,0.00016758]
[1766978518582,0.0111859,89479.0,89462.0,0.05612]
[1766978518784,0.0111859,89479.0,89462.0,0.08612]
[1766978519084,0.0111859,89479.0,89463.0,0.0111878]
[1766978519296,0.0111859,89479.0,89463.0,0.0311878]
[1766978519487,0.0111862,89477.0,89458.0,0.05612]
[1766978519677,0.0111862,89477.0,89458.0,0.08612]
[1766978519979,0.0111862,89477.0,89460.0,0.23406083]
[1766978520984,0.0111862,89477.0,89460.0,0.0111881]
[1766978521489,0.0111862,89477.0,89460.0,0.23406083]
[1766978521989,0.00016758,89484.0,89475.0,0.0111862]
[1766978522283,0.1856,89529.0,89458.0,0.05612]
[1766978522284,0.17495124,89483.0,89470.0,0.22287273]
[1766978522490,0.05612,89482.0,89468.0,0.0111872]
[1766978524493,0.0673054,89482.0,89467.0,0.0111873]
[1766978524882,0.05612,89482.0,89467.0,0.0111873]
[1766978525691,0.05612,89482.0,89466.0,0.00016758]
[1766978526385,0.0111859,89479.0,89466.0,0.00016758]
[1766978527794,0.05612,89480.0,89466.0,0.00016758]
[1766978528185,0.0673058,89480.0,89466.0,0.00016758]
[1766978528386,0.02376327,89479.0,89466.0,0.00016758]
[1766978528593,0.02376327,89478.0,89466.0,0.00016758]
[1766978528888,0.02376327,89477.0,89466.0,0.00016758]
[1766978529093,0.03494947,89476.0,89466.0,0.00016758]
[1766978529299,0.02376327,89475.0,89466.0,0.00016758]
[1766978529594,0.02376854,89474.0,89466.0,0.00016758]
[1766978529795,0.0111859,89479.0,89466.0,0.00016758]
[1766978529999,0.02376854,89478.0,89466.0,0.00016758]
[1766978530298,0.02376854,89477.0,89466.0,0.00016758]
[1766978530487,0.02376854,89476.0,89466.0,0.00016758]
[1766978530686,0.02376854,89475.0,89466.0,0.00016758]
[1766978530994,0.02376854,89474.0,89466.0,0.00016758]
[1766978531199,0.02376854,89473.0,89466.0,0.00016758]
[1766978531394,0.0111861,89477.0,89458.0,0.05612]
[1766978531594,0.02378022,89476.0,89458.0,0.08612]
[1766978531782,0.02378022,89475.0,89459.0,0.0111883]
[1766978531986,0.02378022,89474.0,89459.0,0.0111883]
[1766978532282,0.02378022,89473.0,89456.0,0.0111887]
[1766978532482,0.02378022,89472.0,89458.0,0.0111884]
[1766978532691,0.02378022,89471.0,89460.0,0.0111881]
[1766978532895,0.02378022,89470.0,89460.0,0.0111881]
[1766978533096,0.011186,89478.0,89460.0,0.0111881]
[1766978533097,0.02378022,89469.0,89460.0,0.0111881]
[1766978533301,0.011186,89478.0,89460.0,0.0111881]
[1766978533595,0.02421258,89477.0,89460.0,0.0111881]
[1766978533797,0.02421258,89476.0,89460.0,0.0111881]
[1766978533997,0.02421258,89475.0,89460.0,0.0111881]
[1766978534197,0.02421258,89474.0,89460.0,0.0111881]
[1766978534400,0.02421258,89473.0,89460.0,0.0111881]
[1766978534605,0.02421258,89472.0,89460.0,0.0111881]
[1766978534801,0.02421258,89471.0,89460.0,0.0111881]
[1766978535102,0.02421258,89470.0,89460.0,0.0111881]
[1766978535290,0.02421258,89469.0,89460.0,0.0111881]
[1766978535486,0.011186,89478.0,89460.0,0.0111881]
[1766978535690,0.0242132,89477.0,89460.0,0.0111881]
[1766978535900,0.0353995,89476.0,89460.0,0.0111881]
[1766978536097,0.0111865,89474.0,89457.0,0.0111885]
[1766978536302,0.0111868,89471.0,89457.0,0.02]
[1766978536597,0.0242132,89470.0,89457.0,0.02]
[1766978536800,0.0111872,89468.0,89455.0,0.09508]
[1766978537000,0.0111875,89466.0,89448.0,0.0111896]
[1766978537193,0.02421235,89465.0,89448.0,0.0973096]
[1766978537394,0.01135517,89466.0,89448.0,0.0973096]
[1766978537604,0.02421423,89465.0,89450.0,0.0111893]
[1766978537804,0.01135517,89466.0,89450.0,0.0111893]
[1766978538003,0.02421423,89465.0,89450.0,0.0111893]
[1766978538203,0.0111878,89464.0,89448.0,0.05612]
[1766978538397,0.00016767,89466.0,89450.0,0.22287273]
[1766978539199,0.00016767,89466.0,89451.0,0.0111893]
[1766978539706,0.00016767,89466.0,89450.0,0.22287273]
[1766978539909,0.0111884,89459.0,89439.0,0.01127587]
[1766978540091,0.0111884,89459.0,89440.0,0.1512]
[1766978540297,0.22287273,89460.0,89440.0,0.1812]
[1766978540298,0.0111887,89456.0,89440.0,0.1812]
[1766978540498,0.0111887,89456.0,89441.0,0.05612]
[1766978540800,0.00016767,89466.0,89452.0,0.0111891]
[1766978541701,0.011186,89478.0,89456.0,0.22287273]
[1766978542008,0.0111864,89475.0,89455.0,0.0111888]
[1766978542200,0.02398265,89474.0,89455.0,0.0111888]
[1766978542808,0.00016767,89473.0,89455.0,0.0111888]
[1766978543006,0.02398265,89472.0,89455.0,0.0111888]
[1766978543197,0.02398265,89471.0,89455.0,0.0111888]
[1766978543504,0.23405973,89470.0,89456.0,0.05612]
[1766978543707,0.22287273,89470.0,89456.0,0.05612]
[1766978544312,0.0111871,89469.0,89456.0,0.05612]
[1766978544498,0.0111871,89469.0,89451.0,0.0111892]
[1766978544699,0.0111871,89469.0,89450.0,0.00016767]
[1766978544700,0.22287273,89461.0,89453.0,0.0111891]
[1766978544900,0.05612,89469.0,89453.0,0.0111891]
[1766978546111,0.05612,89469.0,89455.0,0.0111887]
[1766978547404,0.05612,89469.0,89452.0,0.0673092]
[1766978547601,0.0111872,89468.0,89452.0,0.05612]
[1766978548609,0.0111875,89466.0,89452.0,0.05612]
[1766978549011,0.0111875,89466.0,89450.0,0.00016767]
[1766978549212,0.22287273,89460.0,89452.0,0.05612]
[1766978550718,0.0111882,89461.0,89452.0,0.05612]
[1766978550919,0.1512,89469.0,89453.0,0.0111891]
[1766978551311,0.1623871,89469.0,89453.0,0.0111891]
[1766978551717,0.1623871,89469.0,89452.0,0.05612]
[1766978552715,0.05612,89469.0,89452.0,0.05612]
[1766978552919,0.05628767,89473.0,89458.0,0.0111884]
[1766978554118,0.05628767,89473.0,89454.0,0.0111888]
[1766978554320,0.05628767,89473.0,89454.0,0.0411888]
[1766978554521,0.06747437,89473.0,89454.0,0.0411888]
[1766978554718,0.02397175,89472.0,89454.0,0.0411888]
[1766978555021,0.03515865,89471.0,89454.0,0.0411888]
[1766978555211,0.0111871,89469.0,89454.0,0.03]
[1766978555405,0.0111871,89469.0,89454.0,0.08612]
[1766978556023,0.0111867,89472.0,89454.0,0.08612]
[1766978556316,0.02397428,89471.0,89455.0,0.0111888]
[1766978556521,0.02397428,89470.0,89455.0,0.0411888]
[1766978556720,0.0111867,89472.0,89455.0,0.0411888]
[1766978556925,0.02397559,89471.0,89455.0,0.03]
[1766978557109,0.02397559,89470.0,89454.0,0.05612]
[1766978557314,0.011187,89470.0,89454.0,0.0673089]
[1766978558318,0.02398038,89469.0,89454.0,0.0673089]
[1766978558517,0.02398038,89468.0,89456.0,0.0111886]
[1766978558716,0.0111867,89472.0,89454.0,0.05612]
[1766978559019,0.0111869,89470.0,89454.0,0.05562197]
[1766978559225,0.02398038,89469.0,89454.0,0.05562197]
[1766978559525,0.02398038,89468.0,89454.0,0.05562197]
[1766978559728,0.0111869,89470.0,89454.0,0.05562197]
[1766978559921,0.02398306,89469.0,89454.0,0.05562197]
[1766978560120,0.02398306,89468.0,89454.0,0.05562197]
[1766978560321,0.02398306,89467.0,89454.0,0.05562197]
[1766978560620,0.0111869,89470.0,89454.0,0.05562197]
[1766978560820,0.02398636,89469.0,89454.0,0.05562197]
[1766978561117,0.02398636,89468.0,89454.0,0.05562197]
[1766978561322,0.02398636,89467.0,89454.0,0.05562197]
[1766978561524,0.05628767,89473.0,89454.0,0.05562197]
[1766978561718,0.02399021,89472.0,89454.0,0.05562197]
[1766978561920,0.0111872,89468.0,89454.0,0.05562197]
[1766978562124,0.0111875,89466.0,89452.0,0.05612]
[1766978562327,0.0111875,89466.0,89452.0,0.08612]
[1766978562628,0.0111875,89466.0,89451.0,0.05612]
[1766978562816,0.02385516,89465.0,89451.0,0.05612]
[1766978563016,0.05628767,89473.0,89450.0,0.00016767]
[1766978563321,0.0111873,89468.0,89451.0,0.0111892]
[1766978563521,0.02385519,89467.0,89451.0,0.0111892]
[1766978566026,0.0111878,89464.0,89442.0,0.05612]
[1766978566227,0.0111878,89464.0,89448.0,0.0111896]
[1766978566422,0.05628767,89473.0,89442.0,0.05612]
[1766978566621,0.0111873,89468.0,89442.0,0.08612]
[1766978566827,0.0111875,89466.0,89442.0,0.08612]
[1766978567023,0.02386965,89465.0,89442.0,0.08612]
[1766978567324,0.0111877,89464.0,89442.0,0.08612]
[1766978567530,0.02386965,89463.0,89446.0,0.0111898]
[1766978568926,0.02386965,89463.0,89448.0,0.0111896]
[1766978570534,0.02386965,89463.0,89449.0,0.0111896]
[1766978570720,0.02386965,89462.0,89449.0,0.0111896]
[1766978571028,0.0111879,89462.0,89446.0,0.0111899]
[1766978572330,0.0111876,89465.0,89446.0,0.0111899]
[1766978572531,0.02387604,89464.0,89449.0,0.0111895]
[1766978572731,0.02387604,89463.0,89449.0,0.0111895]
[1766978572932,0.02387604,89462.0,89449.0,0.0111895]
[1766978573132,0.02387604,89461.0,89449.0,0.0111895]
[1766978573434,0.0111876,89465.0,89449.0,0.0111895]
[1766978573435,0.02387598,89460.0,89449.0,0.0111895]
[1766978573635,0.02387598,89459.0,89449.0,0.0111895]
[1766978573825,0.0111876,89465.0,89449.0,0.0111895]
[1766978574027,0.02387598,89464.0,89449.0,0.0111895]
[1766978574322,0.03506388,89463.0,89446.0,0.0111899]
[1766978574521,0.02387598,89462.0,89442.0,0.05612]
[1766978574724,0.0111869,89471.0,89456.0,0.0111886]
[1766978574925,0.02366847,89470.0,89456.0,0.0111886]
[1766978575122,0.0111869,89471.0,89456.0,0.0111886]
[1766978575123,0.02366847,89469.0,89456.0,0.0111886]
[1766978575322,0.0111869,89471.0,89456.0,0.0111886]
[1766978575323,0.02366847,89468.0,89456.0,0.0111886]
[1766978575523,0.02366847,89467.0,89453.0,0.011189]
[1766978575740,0.03485597,89466.0,89447.0,0.0673097]
[1766978575931,0.02366847,89465.0,89447.0,0.0973097]
[1766978576236,0.0111877,89464.0,89447.0,0.0973097]
[1766978576433,0.02366847,89463.0,89450.0,0.0111894]
[1766978576632,0.02366847,89462.0,89450.0,0.0111894]
[1766978576932,0.02366847,89461.0,89447.0,0.0673098]
[1766978577126,0.0111876,89465.0,89447.0,0.0973098]
[1766978577324,0.02366893,89464.0,89447.0,0.0973098]
[1766978577524,0.02366893,89463.0,89453.0,0.011189]
[1766978577733,0.01980893,89462.0,89450.0,0.0111894]
[1766978577940,0.0111872,89468.0,89450.0,0.0111894]
[1766978578134,0.0111875,89466.0,89450.0,0.0111894]
[1766978578636,0.05628767,89473.0,89450.0,0.0111894]
[1766978578637,0.0111871,89469.0,89450.0,0.0111894]
[1766978578937,0.0111874,89467.0,89450.0,0.0111894]
[1766978581240,0.0111874,89467.0,89450.0,0.0411894]
[1766978582239,0.0111871,89469.0,89450.0,0.03]
[1766978582437,0.06747427,89473.0,89458.0,0.0111884]
[1766978583141,0.0111869,89471.0,89447.0,0.05612]
[1766978583343,0.0111869,89471.0,89447.0,0.08612]
[1766978584244,0.0111869,89471.0,89453.0,0.011189]
[1766978584943,0.0111869,89471.0,89455.0,0.0111887]
[1766978585542,0.0111871,89469.0,89452.0,0.0111891]
[1766978585844,0.0111871,89469.0,89454.0,0.0111888]
[1766978586736,0.06747437,89473.0,89447.0,0.05612]
[1766978586937,0.011187,89470.0,89447.0,0.08612]
[1766978587142,0.0111871,89469.0,89447.0,0.08612]
[1766978587349,0.0111871,89469.0,89451.0,0.0111892]
[1766978587647,0.0111871,89469.0,89453.0,0.011189]
[1766978589141,0.05628767,89473.0,89450.0,0.05612]
[1766978589347,0.0111871,89469.0,89454.0,0.0111888]
[1766978589552,0.0111867,89472.0,89442.0,0.0111904]
[1766978589736,0.05628767,89473.0,89442.0,0.0111904]
[1766978589737,0.0111871,89469.0,89443.0,0.1512]
[1766978589938,0.02344909,89468.0,89443.0,0.1812]
[1766978590138,0.02344909,89467.0,89443.0,0.1812]
[1766978590433,0.02344909,89466.0,89443.0,0.1812]
[1766978590636,0.02344909,89465.0,89443.0,0.1812]
[1766978590843,0.02344909,89464.0,89443.0,0.1812]
[1766978591043,0.0111871,89469.0,89443.0,0.1812]
[1766978591044,0.02344909,89463.0,89443.0,0.1812]
[1766978591249,0.02344909,89462.0,89453.0,0.011189]
[1766978591448,0.02344909,89461.0,89453.0,0.011189]
[1766978591640,0.0111871,89469.0,89453.0,0.011189]
[1766978593638,0.0111875,89466.0,89449.0,0.0111895]
[1766978593849,0.05628767,89473.0,89450.0,0.0111894]
[1766978594039,0.0111868,89471.0,89443.0,0.1512]
[1766978594239,0.0111872,89468.0,89450.0,0.0111894]
[1766978594438,0.0111872,89468.0,89452.0,0.0111891]
[1766978594938,0.0111869,89471.0,89452.0,0.0111891]
[1766978595648,0.0111869,89471.0,89454.0,0.0111888]
[1766978595839,0.0111868,89471.0,89443.0,0.05612]
[1766978596038,0.05628767,89473.0,89444.0,0.09508]
[1766978596238,0.0111872,89469.0,89449.0,0.0111894]
[1766978596438,0.0111872,89469.0,89451.0,0.0111892]
[1766978596938,0.05628767,89473.0,89444.0,0.09508]
[1766978596939,0.0111867,89472.0,89444.0,0.09508]
[1766978597247,0.011187,89470.0,89451.0,0.0111892]
[1766978597746,0.011187,89470.0,89453.0,0.011189]
[1766978598849,0.01135427,89473.0,89444.0,0.09508]
[1766978599048,0.01135427,89473.0,89444.0,0.12508]
[1766978599451,0.01135427,89473.0,89453.0,0.0111889]
[1766978599645,0.00016767,89473.0,89453.0,0.0111889]
[1766978601246,0.0111871,89469.0,89453.0,0.0111889]
[1766978601451,0.00376767,89473.0,89444.0,0.09508]
[1766978601652,0.00376767,89473.0,89449.0,0.0111895]
[1766978601857,0.00376767,89473.0,89449.0,0.0411895]
[1766978602753,0.0111875,89466.0,89449.0,0.0411895]
[1766978604450,0.00376767,89473.0,89449.0,0.03]
[1766978604755,0.0111883,89460.0,89450.0,0.05612]
[1766978605146,0.0111883,89460.0,89442.0,0.0111904]
[1766978605347,0.0111883,89460.0,89443.0,0.1512]
[1766978605554,0.0111883,89460.0,89443.0,0.1812]
[1766978605948,0.0111876,89465.0,89443.0,0.1812]
[1766978606145,0.0111876,89465.0,89447.0,0.0111897]
[1766978606346,0.0111879,89463.0,89447.0,0.0411897]
[1766978606848,0.0111879,89463.0,89447.0,0.03]
[1766978607152,0.0111882,89461.0,89447.0,0.03]
[1766978608554,0.0111882,89461.0,89448.0,0.05612]
[1766978608755,0.0111882,89461.0,89448.0,0.08612]
[1766978609960,0.00376767,89473.0,89448.0,0.08612]
[1766978610353,0.00376767,89473.0,89448.0,0.03]
[1766978610553,0.0111877,89464.0,89449.0,0.05612]
[1766978610754,0.0111876,89465.0,89449.0,0.0973095]
[1766978612759,0.22305327,89470.0,89449.0,0.08612]
[1766978613149,0.00376767,89473.0,89450.0,0.22305327]
[1766978613357,0.00376767,89473.0,89460.0,0.22305327]
[1766978613657,0.00376767,89473.0,89464.0,0.0111876]
[1766978613852,0.00376767,89473.0,89461.0,0.011188]
[1766978614963,0.09980467,89495.0,89463.0,0.22305327]
[1766978614964,0.08043368,89495.0,89463.0,0.22305327]
[1766978615147,0.08053715,89501.0,89484.0,0.0111851]
[1766978615348,0.106263,89502.0,89481.0,0.05612]
[1766978616058,0.00016767,89500.0,89483.0,0.00016767]
[1766978616253,0.0111834,89499.0,89483.0,0.00016767]
[1766978616853,0.00016767,89500.0,89483.0,0.00016767]
[1766978617160,0.00016767,89500.0,89487.0,0.0111848]
[1766978617461,0.00016767,89500.0,89483.0,0.01135287]
[1766978619349,0.00016767,89500.0,89483.0,0.00016767]
[1766978620255,0.00016767,89500.0,89483.0,0.01135297]
[1766978620457,0.00016767,89500.0,89490.0,0.22305327]
[1766978621261,0.00016767,89500.0,89483.0,0.01135297]
[1766978622163,0.00016767,89500.0,89485.0,0.0111849]
[1766978623163,0.00016767,89500.0,89483.0,0.01135287]
[1766978623555,0.00016767,89500.0,89483.0,0.00016767]
[1766978625265,0.0111833,89499.0,89483.0,0.00016767]
[1766978625467,0.0111837,89496.0,89483.0,0.00016767]
[1766978625866,0.0111837,89496.0,89484.0,0.15116]
[1766978627071,0.00016767,89500.0,89484.0,0.15116]
[1766978627072,0.0111833,89499.0,89484.0,0.15116]
[1766978627670,0.0111837,89497.0,89484.0,0.15116]
[1766978628967,0.0111837,89497.0,89485.0,0.05608]
[1766978629165,0.0111837,89497.0,89485.0,0.15116]
[1766978630866,0.0111837,89497.0,89483.0,0.00016767]
[1766978631067,0.0111837,89497.0,89486.0,0.05608]
[1766978632781,0.0017,89497.0,89486.0,0.05608]
[1766978633677,0.0017,89497.0,89483.0,0.00016767]
[1766978633882,0.0111837,89496.0,89484.0,0.15116]
[1766978635181,0.0017,89497.0,89484.0,0.15116]
[1766978635386,0.011184,89494.0,89484.0,0.15116]
[1766978636184,0.011184,89494.0,89483.0,0.00016767]
[1766978636478,0.011184,89494.0,89485.0,0.05608]
[1766978637590,0.011184,89494.0,89483.0,0.00016767]
[1766978637788,0.011184,89494.0,89486.0,0.05608]
[1766978638590,0.0111836,89497.0,89486.0,0.05608]
[1766978640193,0.0111836,89497.0,89487.0,0.05608]
[1766978640392,0.01135087,89500.0,89487.0,0.05608]
[1766978640593,0.00016767,89500.0,89487.0,0.05608]
[1766978640802,0.09731432,89513.0,89490.0,0.22305327]
[1766978641001,0.09731432,89513.0,89500.0,0.22305327]
[1766978643298,0.09731432,89513.0,89497.0,0.05608]
[1766978643697,0.22305327,89510.0,89498.0,0.05608]
[1766978643891,0.011182,89510.0,89498.0,0.05608]
[1766978644098,0.0111823,89507.0,89498.0,0.05438]
[1766978644399,0.22305327,89510.0,89483.0,0.00016767]
[1766978644598,0.22305327,89510.0,89483.0,0.03016767]
[1766978644796,0.0111833,89499.0,89484.0,0.15116]
[1766978644991,0.0111833,89499.0,89485.0,0.05608]
[1766978645296,0.22305327,89500.0,89483.0,0.00016767]
[1766978645601,0.0111845,89490.0,89483.0,7e-08]
[1766978647701,0.0111845,89490.0,89471.0,0.03998619]
[1766978647702,0.0111846,89489.0,89473.0,0.02986502]
[1766978647900,0.0111846,89489.0,89474.0,0.05608]
[1766978648100,0.0111849,89487.0,89474.0,0.08608]
[1766978648901,0.0111849,89487.0,89474.0,0.03]
[1766978650203,0.22305327,89484.0,89457.0,0.05117469]
[1766978650407,0.22305327,89470.0,89454.0,0.05608]
[1766978650906,0.0111877,89464.0,89448.0,0.03998619]
[1766978651095,0.0111877,89464.0,89449.0,0.05608]
[1766978651299,0.0111881,89461.0,89448.0,0.05608]
[1766978651507,0.01135537,89465.0,89448.0,0.05608]
[1766978652307,0.0111879,89462.0,89448.0,0.05608]
[1766978652705,0.0111884,89459.0,89448.0,0.05608]
[1766978653102,0.05624767,89465.0,89448.0,0.05608]
[1766978653308,0.05624767,89465.0,89439.0,8.507e-05]
[1766978653309,0.22305327,89460.0,89441.0,0.03998619]
[1766978653514,0.0111887,89456.0,89441.0,0.08608]
[1766978653715,0.0111887,89456.0,89441.0,0.05608]
[1766978654606,0.0111893,89451.0,89439.0,8.507e-05]
[1766978654806,0.0111893,89451.0,89439.0,0.08616507]
[1766978655007,0.22305327,89460.0,89439.0,0.08616507]
[1766978655213,0.09508,89462.0,89439.0,0.08616507]
[1766978655517,0.05608,89464.0,89450.0,0.22305327]
[1766978655718,0.0672677,89464.0,89448.0,0.05608]
[1766978655917,0.0672677,89464.0,89450.0,0.22305327]
[1766978656118,0.05608,89464.0,89448.0,0.05608]
[1766978656618,0.0111882,89460.0,89448.0,0.05608]
[1766978657819,0.0111886,89457.0,89448.0,0.05608]
[1766978658614,0.05608,89464.0,89439.0,8.507e-05]
[1766978658615,0.0111884,89458.0,89439.0,8.507e-05]
[1766978658818,0.22305327,89460.0,89439.0,0.03008507]
[1766978659123,0.22305327,89460.0,89439.0,8.507e-05]
[1766978659419,0.0111888,89455.0,89439.0,8.507e-05]
[1766978659620,0.0111888,89455.0,89440.0,0.22305327]
[1766978660018,0.0111893,89452.0,89439.0,8.507e-05]
[1766978660316,0.0111893,89452.0,89440.0,0.22305327]
[1766978660911,0.0111893,89452.0,89439.0,0.04007126]
[1766978663123,0.22305327,89460.0,89439.0,0.04007126]
[1766978663324,0.0111893,89452.0,89439.0,8.507e-05]
[1766978663822,0.0111893,89452.0,89439.0,0.04007126]
[1766978664220,0.0111893,89452.0,89440.0,0.22305327]
[1766978665422,0.0111895,89450.0,89440.0,0.26303946]
[1766978665631,0.0111895,89450.0,89439.0,8.507e-05]
[1766978665632,0.22305327,89450.0,89435.0,0.05966362]
[1766978665929,0.22305327,89450.0,89430.0,0.05966362]
[1766978666132,0.0111912,89436.0,89427.0,0.05966362]
[1766978666321,0.0111912,89436.0,89426.0,0.05966362]
[1766978666522,0.0111915,89434.0,89426.0,0.03]
[1766978666725,0.0111915,89434.0,89419.0,0.05608]
[1766978666923,0.0111915,89434.0,89419.0,0.08608]
[1766978667125,0.0111919,89431.0,89419.0,0.08608]
[1766978667323,0.0111919,89431.0,89415.0,0.09508]
[1766978667324,0.22305327,89430.0,89415.0,0.09508]
[1766978667631,0.22305327,89430.0,89415.0,0.10508]
[1766978668423,0.22305327,89430.0,89415.0,0.09508]
[1766978668826,0.0111921,89429.0,89415.0,0.09508]
[1766978669529,0.0111921,89429.0,89413.0,0.05608]
[1766978669727,8.507e-05,89435.0,89413.0,0.011194]
[1766978670034,0.15124,89434.0,89416.0,0.0111936]
[1766978670237,0.05612,89440.0,89423.0,0.0111928]
[1766978670828,0.05628767,89440.0,89425.0,0.0111924]
[1766978671030,0.05628767,89440.0,89424.0,0.0111927]
[1766978671226,0.05628767,89440.0,89423.0,0.00016767]
[1766978671434,0.0111914,89434.0,89417.0,0.05612]
[1766978673143,0.0111918,89432.0,89417.0,0.05612]
[1766978673431,0.15124,89431.0,89406.0,0.09512]
[1766978673632,0.0111926,89425.0,89406.0,0.12512]
[1766978674839,0.0111935,89418.0,89406.0,0.12512]
[1766978675039,0.05612,89430.0,89383.0,0.0111977]
[1766978675040,0.0111938,89415.0,89396.0,0.0111961]
[1766978675232,0.0111934,89419.0,89397.0,0.15124]
[1766978675427,0.00016767,89421.0,89397.0,0.18124]
[1766978676238,0.0111932,89420.0,89402.0,0.0111953]
[1766978676433,0.0111932,89420.0,89402.0,0.03]
[1766978677230,0.0111936,89418.0,89402.0,0.03]
[1766978678142,0.00016767,89421.0,89402.0,0.03]
[1766978678332,0.09528767,89421.0,89402.0,0.03]
[1766978679239,0.0111933,89420.0,89402.0,0.03]
[1766978681945,0.09528767,89421.0,89402.0,0.03]
[1766978682337,0.0111933,89420.0,89402.0,0.03]
[1766978683941,0.0111902,89444.0,89412.0,0.0111942]
[1766978684144,0.0111913,89436.0,89403.0,0.11184306]
[1766978684335,0.09082846,89435.0,89417.0,0.0111935]
[1766978684538,0.09512,89434.0,89417.0,0.0111935]
[1766978684951,0.09528778,89434.0,89417.0,0.01136128]
[1766978685637,0.09512,89433.0,89417.0,0.00016778]
[1766978685838,0.00016778,89434.0,89423.0,0.0111927]
[1766978686846,0.00016778,89434.0,89425.0,0.0111925]
[1766978687150,0.00016778,89434.0,89417.0,0.00016778]
[1766978688054,0.00016778,89434.0,89417.0,0.01136128]
[1766978688242,0.00016778,89434.0,89417.0,0.00016778]
[1766978688554,0.0111916,89433.0,89417.0,0.00016778]
[1766978688951,0.00016778,89434.0,89417.0,0.00016778]
[1766978691149,0.01135928,89434.0,89417.0,0.00016778]
[1766978691346,0.00016778,89434.0,89417.0,0.00016778]
[1766978692046,0.0111916,89433.0,89417.0,0.00016778]
[1766978695054,0.0111919,89431.0,89417.0,0.00016778]
[1766978696058,0.0111923,89428.0,89417.0,0.00016778]
[1766978697653,0.0111918,89431.0,89417.0,0.00016778]
[1766978697861,0.02365301,89430.0,89417.0,0.00016778]
[1766978698055,0.02365301,89429.0,89417.0,0.00016778]
[1766978698261,0.02365301,89428.0,89417.0,0.00016778]
[1766978698450,0.0111918,89431.0,89417.0,0.00016778]
[1766978698650,0.02365414,89430.0,89417.0,0.00016778]
[1766978698858,0.02365414,89429.0,89417.0,0.00016778]
[1766978699159,0.02365414,89428.0,89417.0,0.01136128]
[1766978699351,0.00016778,89434.0,89417.0,0.01136128]
[1766978699551,0.02365528,89433.0,89417.0,0.01136128]
[1766978699752,0.02365528,89432.0,89417.0,0.01136128]
[1766978699954,0.02365528,89431.0,89417.0,0.01136128]
[1766978700152,0.02365528,89430.0,89417.0,0.01136128]
[1766978700457,0.02365528,89429.0,89417.0,0.01136128]
[1766978700760,0.02365483,89428.0,89417.0,0.01136128]
[1766978701061,0.0111916,89433.0,89417.0,0.01136128]
[1766978701266,0.02365485,89432.0,89417.0,0.01136128]
[1766978701464,0.02365485,89431.0,89417.0,0.01136128]
[1766978701662,0.02365485,89430.0,89417.0,0.01136128]
[1766978701962,0.02365485,89429.0,89417.0,0.01136128]
[1766978702164,0.0111916,89433.0,89417.0,0.00016778]
[1766978702355,0.02365536,89432.0,89417.0,0.00016778]
[1766978702556,6e-08,89431.0,89417.0,0.03016778]
[1766978702753,0.0111858,89479.0,89425.0,0.0111924]
[1766978702957,0.0111885,89458.0,89438.0,0.0111909]
[1766978703170,0.0111888,89455.0,89438.0,0.03]
[1766978703759,0.01135648,89455.0,89438.0,0.03016768]
[1766978703959,0.00016768,89455.0,89438.0,0.04135848]
[1766978704567,0.00016768,89455.0,89441.0,0.0111905]
[1766978705362,0.00016768,89455.0,89438.0,0.01135858]
[1766978705566,0.00016768,89455.0,89438.0,0.04135858]
[1766978706559,0.00016768,89455.0,89438.0,0.03016768]
[1766978706754,0.23784,89486.0,89438.0,0.03016768]
[1766978706755,0.0111859,89479.0,89456.0,0.0111886]
[1766978706959,0.09512,89486.0,89456.0,0.03]
[1766978707163,0.15124,89485.0,89464.0,0.0111876]
[1766978707367,0.0111834,89499.0,89464.0,0.03]
[1766978707569,0.09512,89507.0,89471.0,0.0111868]
[1766978707870,0.00016768,89498.0,89483.0,0.0111852]
[1766978708065,0.00016768,89498.0,89483.0,0.0411852]
[1766978708367,0.00016768,89498.0,89486.0,0.0111849]
[1766978708567,0.00016768,89498.0,89486.0,0.0411849]
[1766978709761,0.09512,89507.0,89489.0,0.0111845]
[1766978709960,0.09512,89507.0,89489.0,0.0311845]
[1766978710465,0.09512,89507.0,89489.0,0.02]
[1766978710971,0.09528768,89507.0,89489.0,0.02]
[1766978711867,0.0111795,89530.0,89489.0,0.02]
[1766978711868,0.01118,89526.0,89490.0,0.11173434]
[1766978712057,0.0111794,89531.0,89503.0,0.0111828]
[1766978712261,0.0111794,89531.0,89504.0,0.15128]
[1766978712465,0.0111794,89531.0,89504.0,0.18128]
[1766978712665,0.0111794,89531.0,89505.0,0.0111825]
[1766978712867,0.00016758,89527.0,89509.0,0.00016758]
[1766978713067,0.00016758,89527.0,89509.0,0.03016758]
[1766978713575,0.00016758,89527.0,89509.0,0.04134958]
[1766978714165,0.00016758,89527.0,89509.0,0.03016758]
[1766978716468,0.0111804,89523.0,89509.0,0.03016758]
[1766978716669,0.01118,89526.0,89509.0,0.03016758]
[1766978716863,0.00016758,89527.0,89509.0,0.03016758]
[1766978718376,0.0111794,89531.0,89509.0,0.03016758]
[1766978718774,0.08051042,89539.0,89509.0,0.03016758]
[1766978719274,0.0111801,89525.0,89509.0,0.03016758]
[1766978719778,0.0111792,89532.0,89509.0,0.03016758]
[1766978721074,0.0001109,89533.0,89510.0,0.0111819]
[1766978721270,0.0111787,89537.0,89510.0,0.0411819]
[1766978721472,0.0111783,89539.0,89513.0,0.0111815]
[1766978721677,0.0111789,89535.0,89514.0,0.1512]
[1766978721977,0.09508,89542.0,89514.0,0.1512]
[1766978721978,0.0111799,89527.0,89514.0,0.03]
[1766978722174,0.0111799,89527.0,89515.0,0.1512]
[1766978722480,0.0111799,89527.0,89515.0,0.1812]
[1766978723279,0.09508,89542.0,89515.0,0.1812]
[1766978723579,0.0111798,89528.0,89515.0,0.1812]
[1766978726984,0.09508,89542.0,89515.0,0.1812]
[1766978728278,0.0111796,89529.0,89515.0,0.1812]